Cogmind - Beta 16.1 @@@ ROGUE MODE // 2026.03.02 @ 21:33:23 Player: YouButSmellier Result: Destroyed by G-47 Trooper with Particle Gun Performance ------------- Evolutions (0) 0 Regions Visited (2) 400 Robots Destroyed (33) 165 Value Destroyed (647) 647 Prototype IDs (0) 0 Alien Tech Used (0) 0 Bonus (0) 0 TOTAL SCORE: 1212 Bonus ------- None Cogmind --------- Core Integrity 0/250 Matter 295/300 Energy 149/160 System Corruption 0% Temperature Warm (117) Movement Walking (260) Ox2 Location -10/Mines Parts ------- > --- POWER (1) -------- Light Nuclear Core > --- PROPULSION (2) --- Aluminum Leg Aluminum Leg > --- UTILITY (2) ------ High-capacity Storage Unit Transport Network Coupler > --- WEAPON (2) ------- Particle Gun Light Assault Rifle > --- INVENTORY (20) --- Light Ion Engine Light Treads Aluminum Leg Aluminum Leg Heat Sink Improved Heat Sink Weight Redist. System Signal Interpreter Peak State ------------ > --- POWER ------------ Light Nuclear Core > --- PROPULSION ------- Aluminum Leg Aluminum Leg > --- UTILITY ---------- High-capacity Storage Unit Transport Network Coupler > --- WEAPON ----------- Particle Gun Light Assault Rifle > --- INVENTORY -------- Light Treads Aluminum Leg Aluminum Leg Heat Sink Improved Heat Sink Weight Redist. System Signal Interpreter [Rating: 11] Favorites ----------- Power Ion Engine Engine Ion Engine Power Core Light Nuclear Core Propulsion Light Treads Treads Light Treads Leg Aluminum Leg Utility High-capacity Storage Unit Storage High-capacity Storage Unit Processor Transport Network Coupler Weapon Assault Rifle Energy Gun Particle Gun Ballistic Gun Assault Rifle Launcher Grenade Launcher Build | -11 -10 -10 ------- Run | Yrd Mat Min Slots Evolved . | . . . Power . | . . . Propulsion . | . . . Utility . | . . . Weapon . | . . . Parts Attached 17 | 6 6 5 Power 3 | 1 1 1 Engine 2 | 1 1 . Core 1 | . . 1 Reactor . | . . . Propulsion 5 | 2 1 2 Treads 3 | 2 1 . Leg 2 | . . 2 Wheel . | . . . Hover . | . . . Flight . | . . . Utility 3 | 1 2 . Device . | . . . Storage 2 | 1 1 . Processor 1 | . 1 . Hackware . | . . . Protection . | . . . Artifact . | . . . Weapon 6 | 2 2 2 Energy Gun 2 | . . 2 Energy Cannon . | . . . Ballistic Gun 3 | 2 1 . Ballistic Cannon . | . . . Launcher 1 | . 1 . Special Weapon . | . . . Impact Weapon . | . . . Slashing Weapon . | . . . Piercing Weapon . | . . . Special Melee Weapon . | . . . Unidentified Prototypes . | . . . Parts Lost 7 | . 1 6 Power 1 | . . 1 Propulsion 2 | . . 2 Utility . | . . . Weapon 4 | . 1 3 Highest Loss Streak 4 | . 1 4 To Critical Strikes . | . . . Average Backups 7 | 1 7 7 Power . | . 1 . Propulsion 2 | . 3 2 Utility 2 | . 2 4 Weapon 1 | . 1 1 Tool/Special . | . . . Unused Backups 9 | . 4 5 Power 2 | . 2 . Propulsion 3 | . 2 1 Utility 4 | . . 4 Weapon . | . . . Tool/Special . | . . . Average Slot Usage (%) 93 | . 93 94 Engine 12 | . 14 7 Treads 26 | . 28 14 Leg 1 | . . 12 Storage 14 | . 14 14 Processor 8 | . 7 14 Energy Gun 1 | . . 11 Ballistic Gun 25 | . 27 13 Peak Build Rating 11 | 6 8 11 Average Rating 7 | 5 6 9 On Entrance 4 | . 6 8 Avg Prop Armor Cover (%) . | . . . Naked Turns . | . . . Heaviest Build 50 | 11 49 50 Greatest Support 40 | 40 40 40 Greatest Overweight (x) 2 | . 1 2 Average Overweight (x) . | . . 1 Largest Inventory Capacity 20 | 8 20 20 Average Capacity 15 | 7 14 20 Most Carried 10 | 4 10 10 Average Carried 7 | 2 7 7 Final Capacity 20 | 8 20 20 Final Carried 10 | 4 10 8 Class Distribution -------------------- 100% | Mutant Dominant Class ---------------- Mutant | -10/Materials Mutant | -10/Mines Resources | -11 -10 -10 ----------- Run | Yrd Mat Min Matter Collected 829 | 256 428 145 Remotely . | . . . Salvage Created 935 | . 664 271 Parts 57 | . 45 12 Haulers Intercepted 2 | . 2 . Recyclers Shooed . | . . . Parts Field Recycled . | . . . Retrieved Matter . | . . . Parts Self-Destructed . | . . . Prevented . | . . . Parts Restored . | . . . Kills | -11 -10 -10 ------- Run | Yrd Mat Min Combat Hostiles Destroyed 26 | . 19 7 Guns 22 | . 15 7 AOE 4 | . 4 . Classes Destroyed 7 | . 6 1 Worker 1 | . 1 . Builder 1 | . 1 . Hauler 2 | . 2 . Recycler 1 | . . 1 Watcher 2 | . 2 . Swarmer 12 | . 9 3 Grunt 13 | . 10 3 Best Kill Streak 12 | . 12 3 Combat Bots Only 9 | . 9 3 Max Kills in Single Turn 3 | . 3 1 Gunslinging 1 | . 1 . Exploded 2 | . 2 . Melee . | . . . Uniques/NPCs Destroyed 1 | . . 1 YI-UF0 (-10/Mines) Combat | -11 -10 -10 -------- Run | Yrd Mat Min Hostile Shots Fired 136 | . 76 60 Missed 30 | . 15 15 Hits 106 | . 61 45 Projectile 106 | . 61 45 AOE 9 | . . 9 Critical Strikes 2 | . . 2 Damage Taken 1312 | . 581 731 Core 267 | . 129 138 Absorbed by Shields . | . . . Regen/Repaired (Parts) 71 | . 71 . Core Remaining (%) 100 | 100 . . Volleys Fired 96 | . 57 39 Largest 2 | . 2 2 Hottest 130 | . 50 130 Shots Fired 170 | . 111 59 Gun 162 | . 103 59 Cannon . | . . . Launcher 8 | . 8 . Special . | . . . Kinetic 139 | . 103 36 Thermal 23 | . . 23 Explosive 8 | . 8 . Electromagnetic . | . . . Robot Hit Streak 9 | . 9 8 Robot Miss Streak 3 | . 3 2 Penetration Max . | . . . Secondary Targets 4 | . 3 1 Max Gunslinging Chain 1 | . 1 1 Shots Hit Robots 116 | . 72 44 Core Hits 56 | . 39 17 Critical Kills 1 | . 1 . Critical Parts Destroyed 1 | . . 1 Critical Strikes 3 | . 1 2 Burn 1 | . . 1 Destroy 2 | . 1 1 Melee Attacks . | . . . Impact . | . . . Slashing . | . . . Piercing . | . . . Sneak Attacks . | . . . Combat Hostiles . | . . . Follow-up Attacks . | . . . Damage Inflicted 1807 | . 1252 555 Guns 1341 | . 791 550 Cannons . | . . . Explosions 453 | . 453 . Melee . | . . . Ramming 13 | . 8 5 Kinetic 1085 | . 791 294 Thermal 256 | . . 256 Explosive 453 | . 453 . Electromagnetic . | . . . Impact . | . . . Slashing . | . . . Piercing . | . . . Highest Corruption . | . . . Average Corruption . | . . . Corruption Purged . | . . . Corruption Blocked . | . . . Overload Shots . | . . . Overflow Damage 33 | . 33 . Projectiles . | . . . Explosions 33 | . 33 . Melee . | . . . Knockbacks . | . . . Impact . | . . . Kinetic . | . . . Secondary . | . . . Self-Inflicted Damage 23 | . 23 . Shots 1 | . 1 . Rammed 2 | . 1 1 Targets Rammed 2 | . 1 1 Kicked . | . . . Crushed . | . . . Highest Temperature 139 | . 2 139 Average Temperature 54 | . 2 59 Received Heat Transfer 342 | . 147 195 Siege Activations . | . . . Martial Activations . | . . . Shielding Activations . | . . . Robots Disrupted . | . . . Combat Hostiles . | . . . Robots Corrupted . | . . . Combat Hostiles . | . . . Parts Fried . | . . . Impact Corruptions . | . . . Robots Melted . | . . . Combat Hostiles . | . . . Parts Melted . | . . . Heat Transferred 703 | . . 703 Parts Sabotaged . | . . . Parts Stolen . | . . . Parts Stripped . | . . . Power Chain Reactions . | . . . Alert | -11 -10 -10 ------- Run | Yrd Mat Min Maximum Alert Level 1 | . 1 . Low Security (%) 74 | 100 68 100 Level 1 25 | . 31 . Level 2 . | . . . Level 3 . | . . . Level 4 . | . . . Level 5 . | . . . High Security . | . . . Max Security . | . . . Peak Influence 262 | . 262 137 Initial 72 | . . 72 Average 136 | . 151 83 Influence Increases 775 | . 600 175 Destroy 0b10 Robot/C 500 | . 380 120 Destroy 0b10 Robot/NC 35 | . 30 5 Destroy Leader 98 | . 78 20 Successful Hack 35 | . 35 . Disable Machine 15 | . 15 . Destroy Structure 32 | . 32 . Lose Combat Pursuer 60 | . 30 30 Influence Decreases 738 | . 415 323 Entered New Map 113 | . . 113 Time Decay 555 | . 405 150 Lost Part 70 | . 10 60 Squads Dispatched 4 | . 4 . Investigation 4 | . 4 . Extermination . | . . . Reinforcement . | . . . Assault . | . . . Garrison . | . . . Intercept . | . . . Searches Triggered . | . . . Construction Impeded . | . . . Haulers Reinforced . | . . . Active Scanning Responses . | . . . Cargo Convoy Interrupts . | . . . Stealth | -11 -10 -10 --------- Run | Yrd Mat Min Distress Signals 3 | . 3 . Communications Jammed . | . . . Distress Signals . | . . . Times Spotted 38 | . 28 10 Peak Tracking Total 7 | . 7 3 Tactical Retreats 4 | . 2 2 Traps | -11 -10 -10 ------- Run | Yrd Mat Min Traps Triggered 3 | . 3 . Indirectly . | . . . Trap Hack Attempts . | . . . Triggered . | . . . Disarmed . | . . . Reprogrammed . | . . . Reused . | . . . Traps Extracted . | . . . Installed . | . . . Triggered . | . . . Machines | -11 -10 -10 ---------- Run | Yrd Mat Min Machines Disabled 1 | . 1 . Max in Single Turn 1 | . 1 . Machines Repaired . | . . . Machines Dismantled . | . . . Machines Sabotaged . | . . . Overloaded Fab Kills . | . . . Hacking | -11 -10 -10 --------- Run | Yrd Mat Min Machines Accessed 9 | . 9 . Terminals 8 | . 8 . Fabricators . | . . . Repair Stations 1 | . 1 . Recycling Units . | . . . Scanalyzers . | . . . Garrison Access . | . . . Total Hacks 27 | . 27 . Successful 11 | . 11 . Failed 16 | . 16 . Catastrophic 7 | . 7 . Database Lockouts . | . . . Manual 21 | . 21 . Terminals 24 | . 24 . Fabricators . | . . . Repair Stations 3 | . 3 . Recycling Units . | . . . Scanalyzers . | . . . Garrison Access . | . . . Terminal Hacks 8 | . 8 . Part Schematic 1 | . 1 . Branch Access Points 1 | . 1 . Terminal Index 1 | . 1 . Locate Traps 1 | . 1 . Surveillance Status 1 | . 1 . Transport Status 1 | . 1 . Coupling Status 1 | . 1 . Hauler Manifests 1 | . 1 . Fabricator Hacks . | . . . Repair Station Hacks 2 | . 2 . Scan Component 1 | . 1 . Repair 1 | . 1 . Recycling Unit Hacks . | . . . Scanalyzer . | . . . Garrison Access Hacks . | . . . Unauthorized Hacks 1 | . 1 . Terminals 1 | . 1 . Assimilate 1 | . 1 . Fabricators . | . . . Repair Stations . | . . . Recycling Units . | . . . Scanalyzers . | . . . Garrison Access . | . . . Data Cores Recovered . | . . . Used . | . . . Hacking Detections 9 | . 9 . Full Trace Events 1 | . 1 . Feedback Events . | . . . Feedback Blocked . | . . . Robot Schematics Acquired . | . . . Robots Built . | . . . Authchips . | . . . Time . | . . . Total Robot Build Rating . | . . . Part Schematics Acquired 1 | . 1 . Parts Built . | . . . Authchips . | . . . Time . | . . . Total Part Build Rating . | . . . Part Studies Acquired . | . . . Parts Repaired 1 | . 1 . Time 26 | . 26 . Parts Recycled . | . . . Recycled Matter . | . . . Retrieved Matter . | . . . Retrieved Components . | . . . Parts Scanalyzed . | . . . Part Schematics Acquired . | . . . Parts Damaged . | . . . Bothacking | -11 -10 -10 ------------ Run | Yrd Mat Min Used RIF Installer . | . . . Robots Hacked . | . . . Non-combat . | . . . Combat . | . . . Robot Hacks Applied . | . . . Relay Couplers Released . | . . . Fabnet Peak Effective % . | . . . Robots Rewired . | . . . Allies Hacked . | . . . Hacks Repelled . | . . . Allies | -11 -10 -10 -------- Run | Yrd Mat Min Total Allies . | . . . Largest Group . | . . . Highest-Rated Group . | . . . Highest-Rated Ally . | . . . Total Orders . | . . . Ally Attacks . | . . . Total Damage . | . . . Kills . | . . . Allies Corrupted . | . . . Allies Melted . | . . . Intel | -11 -10 -10 ------- Run | Yrd Mat Min Active Infowar (turns) 1309 | . 994 315 T.N.C. 1309 | . 994 315 Robot Analysis Total . | . . . Derelict Logs Recovered . | . . . Drone Launches . | . . . Drone Recoveries . | . . . Exploration | -11 -10 -10 ------------- Run | Yrd Mat Min Turns Passed 2245 | 72 1858 315 Spaces Moved 898 | 42 776 80 Core 6 | 6 . . Treads 851 | 36 776 39 Legs 41 | . . 41 Wheels . | . . . Hover . | . . . Flight . | . . . Fastest Speed 50 | 50 160 240 Average Speed 199 | 144 197 251 Slowest Speed 320 | 160 240 320 Overloaded Moves . | . . . Propulsion Burnouts . | . . . Robots Hopped . | . . . Potential Cave-ins . | . . . Cave-ins Triggered . | . . . Exploration Rate (%) 38 | 3 95 18 Regions Visited 2 Branch Regions 1 Pre-discovered Areas . | . . . Known Exits Taken 1 | . 1 . Unknown Exits Taken 1 | 1 . . Scrap Searched 1 | . . 1 Spaces Dug . | . . . Terrain Destroyed 29 | . 29 . Melee . | . . . Projectile . | . . . AOE 29 | . 29 . Terrain Rammed . | . . . Walls Destroyed . | . . . Machines Disabled . | . . . Actions | -11 -10 -10 --------- Run | Yrd Mat Min Total 1183 | 51 995 137 Wait 145 | . 139 6 Move 896 | 41 775 80 Hop . | . . . Pick Up 19 | 4 11 4 Fast Attach 8 | 6 2 . Attach 7 | . 1 6 Detach . | . . . Swap 4 | . 3 1 Drop 6 | . 6 . Fire 96 | . 57 39 Melee . | . . . Ram . | . . . Kick . | . . . Crush 2 | . 1 1 Escape Stasis . | . . . Rewire . | . . . Trap . | . . . Miscellaneous . | . . . Route ------- -11/Scrapyard -10/Materials (discovered 3 exits: [*Mat x2] / *Min) -10/Mines History --------- Turn | Location | Event 33 | -11/Scrapyard | Discovered new exit (range 16) 73 | -11/Scrapyard | Entered Materials 302 | -10/Materials | Build established: Mutant 547 | -10/Materials | Destroyed 9 combat bots 628 | -10/Materials | Identified exit to Mines 854 | -10/Materials | Repaired Lgt. Treads 889 | -10/Materials | Discovered new exit (range 16) 1468 | -10/Materials | Discovered new exit (range 16) 1762 | -10/Materials | Core integrity fell below 50% 1931 | -10/Materials | Entered Mines 2086 | -10/Mines | Core integrity fell below 20% 2097 | -10/Mines | Destroyed YI-UF0 2124 | -10/Mines | Lost 4 parts (1p1n2w) 2246 | -10/Mines | Destroyed by G-47 Trooper with Particle Gun Last Messages --------------- 02204_ K-01 Serf collects debris. 02205_ Acquired Aluminum Leg. 02206_ U-05 Engineer lays Concrete. 02208_ K-01 Serf collects debris. 02208_ U-05 Engineer lays Concrete. 02210_ K-01 Serf collects debris. 02210_ Critical hit (Burn: +37). 02210_ U-05 Engineer builds a Wall. 02211_ Acquired Lgt. Ion Engine. 02211_ K-01 Serf collects debris. 02215_ U-05 Engineer lays Concrete. 02217_ K-01 Serf collects debris. 02217_ U-05 Engineer builds a Wall. 02218_ K-01 Serf collects debris. 02226_ Critical hit (Burn: +37). 02226_ R-06 Scavenger collects Sml. Storage Unit. 02227_ K-01 Serf collects debris. 02229_ R-06 Scavenger collects Com. Wheel. 02230_ K-01 Serf collects debris. Map ----- +----------------------------------------------------+ | | | | | | | | | | | | | | | | | ????????????????????????????????????????????????? | | ????????????????????????????????????????????????? | | ???????????##???????????????????????????????????? | | ??????????? ??????????????????????????????????? | | ?????????? ??????????????????????????????????? | | ?????????? ??????????????????????????????????? | | ??????????? ??????????????????????????????????? | | ??????????? ??????????????????????????????????? | | ??????????? "??????????????????????????????????? | | ??????????? "??????###?????????????????????????? | | ??????????? "?????? #?????????????????????????? | | ???#####???# #??????# #######???????????????????? | | ??## #??# ####???# ## #???####????????????? | | ??# ??# #???# ## #??# ##???????????? | | ???# #?# ## #???# # ### #???????????? | | ????# ## ## #???# # #????????????? | | ?????# *% ##### ## #??????????????? | | ?????## % ! ## ##@ #???????????????? | | ??????## % #### ##g #???????????????? | | ???????## ##### = * #???????????????? | | ????????## ##?# # !%| ##???????????????? | | ????###??# #??# #! #### #????????????????? | | ???## ###%#### # # ## #????????????????? | | ???# %! # # ## ##????????????????? | | ???# #### # # ### ####?????????????????? | | ??# #??# # # ###%#### #???????????????? | | ??# ##??# ##### ##?# #???????????????? | | ??# #????# #?# # ##??### # #???????????????? | | ??# #?????# #?# # # ????## ##?????????????????? | | ?? ??????# #?# # #????## # ????????????????? | | ?# ???????# #?##### #?????# ## #???????????????? | | ?## ???????# ????? #?????# ## #???????????????? | | ??#????????## ?????###????? ## #???????????????? | | ????????????? ????????????? ??????????????????? | | ????????????? ????????????? ??????????????????? | | ????????????? ????????????? #??????????????????? | | ????????????? ????????????? ??????????????????? | | ?????????????#????????????? ??????????????????? | | ??????????????????????????? ???????????????????? | | ??????????????????????????? ???????????????????? | | ??????????????????????????? ???????????????????? | | ???????????????????????????##???????????????????? | +----------------------------------------------------+ Best States ------------- Heat Dissipation 25 Energy Generation 14 Energy Capacity 250 Matter Stores 300 Matter Capacity 300 Sight Range 16 Terrain Scan Density 10 Evasion (%) 40 Recoil Reduction 2 Item Schematics ----------------- Hcp. Storage Unit | -10/Materials | Hacked Robot Schematics ------------------ None Fabricated ------------ Nothing Repaired ---------- Lgt. Treads | 49% | -10/Materials Studied --------- None Alien Tech Used ----------------- None Achievements -------------- None Challenges ------------ None Game ------ Seed LargeVariableTorch Manual? 0 Play Time 00:22:07 Cumulative 22.2 hours Start 2026.03.02 @ 21:14:08 End 2026.03.02 @ 21:33:23 Sessions 1 Manual Loads 0 Difficulty Rogue Special Mode None Game No. 11 Rogue 9 Adventurer 2 Explorer 0 Win Type - Total 0 Types 0/0/0/0/0/0/0/0/0/0 Lore% 9 Gallery% 19 Achievement% 13 Wizard Run 0 Options --------- Layout 1 ASCII 0 Keyboard 0 Movement Mouse Keybinds 0 Fullscreen 1 Font 32/Terminus Map View 50x35 Zoom Use 0% Tactical HUD 1 Map Filters NONE Filters NONE Steam 1 RUN: b8af67a6-67fc-4bde-8e19-cb4fdeeeac1a